bitfinex-derivatives/quotes_BNBF0:USTF0_20250406
["timestamp","ask_amount","ask_price","bid_price","bid_amount"]
[1743913226137,0.709,590.95,590.27,1.26423726]
[1743913226336,0.709,590.95,590.28,0.28975236]
[1743913230339,0.709,590.95,590.27,1.26423726]
[1743913230533,0.709,590.95,590.28,0.28975589]
[1743913232740,1.235,590.95,590.28,0.28975589]
[1743913233138,1.235,590.95,590.29,0.28975589]
[1743913233439,1.235,590.95,590.3,0.28975589]
[1743913233634,1.235,590.95,590.31,0.28975589]
[1743913233939,1.235,590.95,590.32,0.28975589]
[1743913234240,1.235,590.95,590.33,0.28975589]
[1743913234436,1.235,590.95,590.23,0.28975589]
[1743913234634,1.235,590.95,590.25,1.26423726]
[1743913234838,1.235,590.95,590.26,0.28975589]
[1743913236441,1.235,590.95,590.22,0.28975589]
[1743913236642,1.235,590.95,590.23,0.28975589]
[1743913236838,1.235,590.95,590.22,0.28975589]
[1743913237039,1.235,590.95,590.23,0.28975589]
[1743913237238,1.235,590.95,590.22,0.28975589]
[1743913237437,1.235,590.95,590.23,0.28975589]
[1743913237637,1.235,590.95,590.22,0.28975589]
[1743913237938,1.235,590.95,590.12,1.26423726]
[1743913238144,1.52958696,590.95,590.13,0.28996874]
[1743913239041,1.52958696,590.95,590.12,0.28996874]
[1743913239238,1.52958696,590.95,590.14,0.28996874]
[1743913239440,1.52958696,590.95,590.13,0.28996874]
[1743913239743,1.52958696,590.95,590.14,0.28996874]
[1743913239943,1.52958696,590.95,590.12,0.28996874]
[1743913240142,1.52958696,590.95,590.15,0.28996874]
[1743913240343,1.52958696,590.95,590.16,0.28996874]
[1743913240543,1.52958696,590.95,590.12,0.28996874]
[1743913240842,1.235,590.95,590.13,0.28996874]
[1743913241042,1.235,590.95,590.12,0.28996874]
[1743913241242,1.235,590.95,590.13,0.28996874]
[1743913241542,1.235,590.95,590.14,0.28996874]
[1743913241842,1.235,590.95,590.15,0.28996874]
[1743913242038,0.29460692,590.94,590.16,0.28996874]
[1743913242243,0.29460692,590.94,590.12,0.28996874]
[1743913242444,0.29460692,590.94,590.13,0.28996874]
[1743913242744,0.29460692,590.94,590.14,0.28996874]
[1743913242938,0.29460692,590.94,590.12,0.28996874]
[1743913243143,0.29460692,590.94,590.13,0.28996874]
[1743913243344,0.29460692,590.94,590.12,1.554206]
[1743913243544,0.29460692,590.94,590.13,0.28996874]
[1743913244545,0.29460692,590.94,590.12,1.26423726]
[1743913244844,0.29460692,590.94,590.13,0.29004177]
[1743913245743,1.00760692,590.94,590.13,0.29004177]
[1743913247948,1.00760692,590.94,590.12,1.26423726]
[1743913248248,1.00760692,590.94,590.13,0.29008404]
[1743913249647,1.00760692,590.94,590.09,0.33893134]
[1743913250051,1.00760692,590.94,590.1,0.29009715]
[1743913255757,0.713,590.94,590.1,0.29009715]
[1743913256857,0.713,590.94,590.11,0.29009715]
[1743913257157,0.29466928,590.93,590.12,0.29009715]
[1743913257452,0.29466928,590.93,590.13,0.29009715]
[1743913257657,0.29466928,590.93,590.14,0.29009715]
[1743913257851,0.29466928,590.93,590.02,0.29009715]
[1743913258054,0.29466928,590.93,590.03,0.29009715]
[1743913258255,0.29466928,590.93,590.04,0.29014758]
[1743913258454,0.29466928,590.93,590.01,1.26423726]
[1743913258455,0.29466928,590.93,590.02,0.29014758]
[1743913258751,0.713,590.94,590.02,0.29014758]
[1743913259660,0.713,590.94,589.92,0.29014758]
[1743913259860,0.713,590.94,589.93,0.29014952]
[1743913260158,0.294683,590.93,589.94,0.29014952]
[1743913260358,0.294683,590.93,589.92,0.29014952]
[1743913260557,0.294683,590.93,589.91,1.26423726]
[1743913260752,0.294683,590.93,589.92,0.29014921]
[1743913261757,0.294683,590.93,589.9,0.29014921]
[1743913262655,0.294683,590.93,589.89,1.26423726]
[1743913262861,0.294683,590.93,589.9,0.29014979]
[1743913263456,0.294683,590.93,589.92,1.26423726]
[1743913263656,0.294683,590.93,589.93,0.29014979]
[1743913265462,0.294683,590.93,589.9,0.29014979]
[1743913267758,0.713,590.94,589.9,0.29014979]
[1743913268262,0.29467552,590.93,589.89,0.29014979]
[1743913268462,0.29467552,590.93,589.9,0.29014979]
[1743913268661,0.29467552,590.93,589.89,0.29014979]
[1743913268860,0.29467552,590.93,589.9,0.29014979]
[1743913269058,0.29467552,590.93,589.89,0.29014979]
[1743913269259,0.29467552,590.93,589.9,0.29014979]
[1743913269463,0.29467552,590.93,589.89,0.29014979]
[1743913269659,0.29467552,590.93,589.9,0.29014948]
[1743913269863,0.29467552,590.93,589.89,0.29014948]
[1743913270160,0.29467552,590.93,589.9,0.29014948]
[1743913270464,0.29467552,590.93,589.89,0.29014948]
[1743913270664,0.29467552,590.93,589.9,0.29014948]
[1743913270865,0.29467552,590.93,589.91,1.26423726]
[1743913271061,0.29467552,590.93,589.92,0.29014948]
[1743913271363,0.29467552,590.93,589.91,1.26423726]
[1743913271563,0.29467552,590.93,589.92,0.2901509]
[1743913272259,0.29467552,590.93,589.91,1.26423726]
[1743913273065,0.29467552,590.93,589.8,0.29467552]
[1743913273265,0.29467552,590.93,589.81,0.29016397]
[1743913273865,0.713,590.94,589.81,0.29016397]
[1743913274065,0.29472294,590.92,589.8,0.29472294]
[1743913274265,0.29472294,590.92,589.81,0.29016397]
[1743913276970,0.526,590.95,589.82,0.29016397]
[1743913277171,0.526,590.95,589.52,0.29016397]
[1743913277466,0.526,590.95,589.54,0.33924754]
[1743913277666,0.526,590.95,589.55,0.29016397]
[1743913277865,0.526,590.95,589.57,0.33923028]
[1743913278065,0.526,590.95,589.58,0.29016397]
[1743913278271,0.29470921,590.94,589.6,0.33921302]
[1743913278570,0.29470921,590.94,589.61,0.29016397]
[1743913278867,0.29470921,590.94,589.62,0.33920151]
[1743913279070,0.29470921,590.94,589.63,0.29016397]
[1743913279265,0.29470921,590.94,589.64,0.33919001]
[1743913279466,0.29470921,590.94,589.65,0.29016397]
[1743913279866,1.065,590.95,589.65,0.29016397]
[1743913280070,0.29470546,590.93,589.65,0.29016397]
[1743913280270,0.29470546,590.93,589.66,0.3391785]
[1743913280466,0.29470546,590.93,589.67,0.29016397]
[1743913280666,0.29470546,590.93,589.68,0.339167]
[1743913280868,0.29470546,590.93,589.69,0.29016397]
[1743913281070,0.29470546,590.93,589.7,0.62931947]
[1743913281266,0.29470546,590.93,589.71,0.29016397]
[1743913281471,0.29470546,590.93,589.75,1.26423726]
[1743913281672,0.29470546,590.93,589.76,0.62928468]
[1743913281873,0.29470546,590.93,589.77,0.62927893]
[1743913282071,0.29470546,590.93,589.78,0.62927318]
[1743913282271,0.29470546,590.93,589.79,0.29016369]
[1743913282770,1.065,590.95,589.79,0.29016369]
[1743913284071,0.29468799,590.94,589.79,0.29016369]
[1743913285772,0.539,590.95,589.79,0.29016369]
[1743913285976,0.539,590.95,589.79,0.62926743]
[1743913286176,0.2946855,590.93,589.8,0.29016369]
[1743913288380,0.2946855,590.93,589.79,0.33910374]
[1743913288580,0.2946855,590.93,589.8,0.29014547]
[1743913288779,0.539,590.95,589.8,0.29014547]
[1743913289578,1.317,590.95,589.8,0.29014547]
[1743913290080,0.29468425,590.94,589.8,0.29014547]
[1743913290281,0.29468425,590.94,589.81,0.33909225]
[1743913290580,0.29468425,590.94,589.82,0.29014547]
[1743913290777,0.29468425,590.94,589.83,0.62922622]
[1743913290978,0.29468425,590.94,589.84,0.62922047]
[1743913291178,0.29468425,590.94,589.85,0.62921472]
[1743913291476,0.29468425,590.94,590.08,1.26423726]
[1743913291780,1.317,590.95,590.09,0.29014547]
[1743913292081,0.29462562,590.93,590.09,0.29014547]
[1743913292981,0.29462562,590.93,590.15,1.26423726]
[1743913293178,0.29462562,590.93,590.16,0.29014547]
[1743913294778,1.317,590.95,590.16,0.29014547]
[1743913295081,1.317,590.95,590.15,1.26423726]
[1743913295082,0.29460692,590.93,590.15,1.26423726]
[1743913295282,0.29460692,590.93,590.16,0.28997449]
[1743913295881,0.29460692,590.93,590.14,0.28997449]
[1743913296081,0.29460692,590.93,590.15,0.28997449]
[1743913296381,0.29460692,590.93,590.14,0.28997449]
[1743913296581,0.29460692,590.93,590.15,0.28997449]
[1743913296778,0.29460692,590.93,590.14,0.28997449]
[1743913296982,0.29460692,590.93,590.15,0.28996632]
[1743913297183,0.29460692,590.93,590.16,0.28996632]
[1743913297378,0.29460692,590.93,590.14,0.28996632]
[1743913297682,0.29460692,590.93,590.15,0.28996632]
[1743913297883,1.317,590.95,590.13,0.28996632]
[1743913298080,0.29461066,590.93,590.14,0.28996632]
[1743913298283,0.29461066,590.93,590.15,0.28996632]
[1743913298583,0.29461066,590.93,590.16,0.28996632]
[1743913298784,0.29461066,590.93,590.13,0.28996632]
[1743913300186,0.29461066,590.93,590.11,0.28996632]
[1743913300380,0.29461066,590.93,590.14,0.28996632]
[1743913300581,0.29461066,590.93,590.1,1.26423726]
[1743913300582,0.29461066,590.93,590.15,0.28996632]
[1743913300786,1.317,590.95,590.11,0.28996632]
[1743913301086,1.317,590.95,590.12,0.28998948]
[1743913301280,0.29461315,590.94,590.13,0.28998948]
[1743913301483,0.29461315,590.94,590.11,0.28998948]
[1743913301683,0.29461315,590.94,590.12,0.28998948]
[1743913302080,0.29461315,590.94,590.13,0.28998948]
[1743913302385,0.29461315,590.94,590.14,0.28998948]
[1743913302687,0.29461315,590.94,590.15,0.28998948]
[1743913302985,0.29461315,590.94,590.16,0.28998948]
[1743913303186,0.29461315,590.94,590.1,0.28998948]
[1743913303386,0.29461315,590.94,590.11,0.28998948]
[1743913303587,0.29461315,590.94,590.09,1.26423726]
[1743913303785,0.33839802,591.02,590.1,0.29005751]
[1743913304087,0.29460567,590.93,590.1,0.29005751]
[1743913304488,0.33839802,591.02,590.03,0.29005751]
[1743913305188,0.29454458,591.01,590.02,1.26423726]
[1743913305389,0.29454458,591.01,590.03,0.29000667]
[1743913305790,0.562,591.0,590.03,0.29000667]
[1743913305986,0.562,591.0,590.02,1.26423726]
[1743913306291,0.741,590.99,590.03,0.29000358]
[1743913307189,0.741,590.99,590.02,0.29000358]
[1743913308092,0.29461689,590.98,590.02,0.29000358]
[1743913309590,0.29461689,590.98,589.96,0.29000358]
[1743913309786,0.741,590.99,589.97,0.29000358]
[1743913309986,0.741,590.99,589.87,0.29000358]
[1743913310191,0.741,590.99,589.88,0.33905201]
[1743913310592,0.741,590.99,589.89,0.28995866]
[1743913310788,0.741,590.99,589.9,0.33904051]
[1743913311097,0.29463061,590.98,589.9,0.63367112]
[1743913311394,0.29463061,590.98,589.91,0.2899535]
[1743913311587,0.29463061,590.98,589.92,0.33902902]
[1743913311786,0.29463061,590.98,589.93,0.2899535]
[1743913311990,0.29463061,590.98,589.94,0.33901752]
[1743913312185,0.29463061,590.98,589.95,0.2899535]
[1743913312792,0.741,590.99,589.95,0.2899535]
[1743913314194,0.29462313,590.98,589.95,0.2899535]
[1743913314593,0.29462313,590.98,589.94,0.33901752]
[1743913314594,0.29462313,590.98,589.96,0.2899535]
[1743913314794,0.29462313,590.98,589.97,0.2899535]
[1743913314991,0.29462313,590.98,589.98,0.62894804]
[1743913315191,0.29462313,590.98,589.99,0.62894229]
[1743913315494,0.29462313,590.98,590.0,0.62893655]
[1743913315694,0.29462313,590.98,590.01,0.6289308]
[1743913315890,0.741,590.99,590.01,0.6289308]
[1743913316096,0.741,590.99,590.02,0.2899535]
[1743913316295,0.741,590.99,590.12,1.26423726]
[1743913316595,0.741,590.99,590.13,0.2899535]
[1743913319397,0.741,590.99,590.14,1.26423726]
[1743913319597,0.741,590.99,590.15,0.2899535]
[1743913322096,0.741,590.99,590.16,0.28987463]
[1743913322291,0.562,591.0,590.15,0.28987463]
[1743913322494,0.562,591.0,590.16,0.28987463]
[1743913322693,0.562,591.0,590.15,0.28987463]
[1743913322897,0.562,591.0,590.16,0.28987463]
[1743913323097,0.562,591.0,590.15,0.28987463]
[1743913323301,0.562,591.0,590.16,0.28987463]
[1743913323695,0.562,591.0,590.17,0.28987463]
[1743913323893,0.562,591.0,590.14,0.28987463]
[1743913324094,0.562,591.0,590.15,0.28987463]
[1743913324398,0.562,591.0,590.14,0.28987463]
[1743913324598,0.562,591.0,590.15,0.28987463]
[1743913324793,0.562,591.0,590.14,0.28987463]
[1743913324997,0.33839802,591.02,590.14,0.28987463]
[1743913325197,0.33839802,591.02,590.13,1.26423726]
[1743913325694,0.33839802,591.02,590.14,1.26423726]
[1743913325898,0.668,591.01,590.14,1.26423726]
[1743913326097,0.668,591.01,590.14,1.5541101]
[1743913326297,0.668,591.01,590.15,0.28987284]
[1743913327600,0.668,591.01,590.17,1.26423726]
[1743913327800,0.668,591.01,590.18,0.28987284]
[1743913328799,0.715,591.0,590.18,0.28987284]
[1743913329299,0.715,591.0,590.17,1.26423726]
[1743913329498,0.715,591.0,590.18,0.28994014]
[1743913330599,0.715,591.0,590.18,1.5541774]
[1743913330797,0.715,591.0,590.19,0.28994014]
[1743913330998,0.715,591.0,590.18,1.26423726]
[1743913331200,0.715,591.0,590.2,0.28995615]
[1743913331399,0.715,591.0,590.19,0.28995615]
[1743913331599,0.715,591.0,590.2,0.28995615]
[1743913331899,0.715,591.0,590.19,0.28995615]
[1743913332100,0.715,591.0,590.2,0.28995615]
[1743913332300,0.715,591.0,590.19,0.28995615]
[1743913332496,0.715,591.0,590.2,0.28995615]
[1743913332695,0.715,591.0,590.19,0.28995615]
[1743913332896,0.715,591.0,590.07,0.29456452]
[1743913333101,0.715,591.0,590.08,0.28996799]
[1743913334002,0.715,591.0,590.03,0.28996799]
[1743913334200,0.715,591.0,590.07,0.29458447]
[1743913334404,0.715,591.0,590.08,0.28996799]
[1743913336107,0.715,591.0,590.07,0.29458447]
[1743913336307,0.715,591.0,590.09,0.2899685]
[1743913336507,0.715,591.0,590.1,0.2899685]
[1743913336707,0.715,591.0,590.08,0.2899685]
[1743913336908,0.715,591.0,590.09,0.28997641]
[1743913337103,0.715,591.0,590.08,0.29458198]
[1743913337302,0.715,591.0,590.09,0.28997641]
[1743913337908,0.715,591.0,590.08,0.29458198]
[1743913338108,0.715,591.0,590.09,0.28998118]
[1743913340111,0.715,591.0,590.08,0.29458198]
[1743913340313,0.715,591.0,590.09,0.28998118]
[1743913341013,0.715,591.0,590.14,1.26423726]
[1743913341411,0.715,591.0,590.15,0.29002897]
[1743913341610,0.612,590.99,590.15,0.29002897]
[1743913341915,0.612,590.99,590.14,1.26423726]
[1743913342211,0.612,590.99,590.15,0.29003273]
[1743913342914,0.612,590.99,590.23,1.26423726]
[1743913343314,0.612,590.99,590.24,0.29003302]
[1743913344415,0.612,590.99,590.22,0.29003302]
[1743913344609,0.612,590.99,590.25,0.29003302]
[1743913344814,0.612,590.99,590.26,0.29003302]
[1743913345015,0.612,590.99,590.22,0.29003302]
[1743913345216,0.612,590.99,590.23,0.29003302]
[1743913345517,0.612,590.99,590.24,0.29003302]
[1743913345812,0.612,590.99,590.25,0.29003302]
[1743913346016,0.612,590.99,590.22,0.29003302]
[1743913346216,0.612,590.99,590.23,0.29003302]
[1743913346413,0.612,590.99,590.09,1.26423726]
[1743913346617,0.612,590.99,590.1,0.29003306]
[1743913348217,0.612,590.99,590.09,1.26423726]
[1743913348517,0.612,590.99,590.1,0.29003249]
[1743913348716,0.612,590.99,590.09,0.29003249]
[1743913349817,0.612,590.99,590.08,0.29456452]
[1743913350022,0.612,590.99,590.09,0.29003235]
[1743913352115,0.612,590.99,590.1,0.29003235]
[1743913352318,0.612,590.99,590.06,0.29003235]
[1743913352517,0.612,590.99,590.07,0.29003235]
[1743913352719,0.612,590.99,590.08,1.26423726]
[1743913352919,0.612,590.99,590.09,0.29003235]
[1743913354222,0.791,590.98,590.09,0.29003235]
[1743913354622,0.791,590.98,590.09,1.55426961]
[1743913354817,0.791,590.98,590.1,0.29003235]
[1743913356522,0.791,590.98,590.3,1.26423726]
[1743913358625,0.791,590.98,590.31,0.29003274]
[1743913359225,0.791,590.98,590.09,0.29003274]
[1743913361326,0.791,590.98,590.12,1.26423726]
[1743913361526,0.791,590.98,590.13,0.29003274]
[1743913362629,0.791,590.98,590.12,1.26423726]
[1743913362829,0.791,590.98,590.13,0.29003264]
[1743913363725,0.791,590.98,590.12,1.26423726]
[1743913363929,0.791,590.98,590.13,0.29003119]
[1743913367833,0.791,590.98,590.12,1.26423726]
[1743913368128,0.791,590.98,590.13,0.29003293]
[1743913368334,0.612,590.99,590.25,1.26423726]
[1743913368530,0.612,590.99,590.26,0.29003293]
[1743913370733,0.612,590.99,590.2,0.29003293]
[1743913370932,0.612,590.99,590.21,0.29003293]
[1743913371132,0.612,590.99,590.2,0.29003293]
[1743913372231,0.526,590.98,590.19,1.26423726]
[1743913372431,0.526,590.98,590.2,0.29003244]
[1743913375643,0.526,590.98,590.19,1.26423726]
[1743913375843,0.526,590.98,590.2,0.29003251]
[1743913376040,0.656,590.97,590.2,0.29003251]
[1743913377244,0.656,590.97,590.19,1.26423726]
[1743913377444,0.656,590.97,590.22,1.26423726]
[1743913377739,0.656,590.97,590.23,0.29003284]
[1743913380642,0.656,590.97,590.34,1.26423726]
[1743913382744,0.656,590.97,590.06,1.26423726]
[1743913382949,0.656,590.97,590.07,0.29004889]
[1743913386251,0.656,590.97,590.08,0.29004797]
[1743913386450,0.656,590.97,590.07,0.29004797]
[1743913389750,0.656,590.97,590.06,0.29004797]
[1743913389949,0.656,590.97,590.07,0.29004797]
[1743913390153,0.656,590.97,590.06,0.29004797]
[1743913390355,0.656,590.97,590.07,0.29004797]
[1743913390655,0.656,590.97,590.08,0.29005484]
[1743913390851,0.656,590.97,590.06,0.29005484]
[1743913391051,0.656,590.97,590.07,0.29005484]
[1743913391254,0.656,590.97,590.06,0.29005484]
[1743913391655,0.656,590.97,590.07,0.29005484]
[1743913391850,0.656,590.97,590.06,0.29005484]
[1743913392154,0.656,590.97,590.05,1.26423726]
[1743913392354,0.656,590.97,590.26,1.26423726]
[1743913392550,0.656,590.97,590.27,0.29005298]
[1743913394055,0.526,590.98,590.27,0.29005298]
[1743913394357,0.82057824,590.98,590.27,0.29005298]
[1743913395154,0.82057824,590.98,590.31,1.26423726]
[1743913395351,0.82057824,590.98,590.32,0.29005298]
[1743913396852,0.526,590.98,590.32,0.29005298]
[1743913397057,0.694,590.97,590.32,0.29005298]
[1743913401255,0.694,590.97,590.33,0.29005298]
[1743913401456,0.694,590.97,590.27,0.29005298]
[1743913401655,0.694,590.97,590.28,0.29005298]
[1743913401855,0.694,590.97,590.27,0.29005298]
[1743913403062,0.694,590.97,590.26,1.26423726]
[1743913403360,0.694,590.97,590.27,0.29004318]
[1743913403955,0.554,590.96,590.28,0.29004318]
[1743913404161,0.554,590.96,590.23,1.26423726]
[1743913404460,0.554,590.96,590.24,0.29003713]
[1743913406764,0.554,590.96,590.25,0.29003713]
[1743913406964,0.554,590.96,590.23,0.29003713]
[1743913407263,0.554,590.96,590.22,1.26423726]
[1743913407264,0.554,590.96,590.24,0.29003713]
[1743913407461,0.554,590.96,590.23,0.29003713]
[1743913407659,0.554,590.96,590.24,0.29003713]
[1743913407962,0.554,590.96,590.25,0.29003713]
[1743913408159,0.554,590.96,590.23,0.29003713]
[1743913410162,0.554,590.96,590.23,1.55427439]
[1743913410367,0.554,590.96,590.24,0.29003713]
[1743913412664,0.554,590.96,590.3,1.26423726]
[1743913412870,0.554,590.96,590.31,0.29003713]
[1743913413069,0.554,590.96,590.3,1.26423726]
[1743913413268,0.554,590.96,590.31,0.29003749]
[1743913415971,0.554,590.96,590.28,0.29003749]
[1743913416272,0.554,590.96,590.29,0.29003749]
[1743913416568,0.554,590.96,590.3,0.29003749]
[1743913416768,0.554,590.96,590.28,0.29003749]
[1743913416973,0.554,590.96,590.29,0.29003749]
[1743913417173,0.554,590.96,590.3,0.29003749]
[1743913417472,0.554,590.96,590.31,0.29003749]
[1743913417772,0.554,590.96,590.28,0.29003749]
[1743913418072,0.554,590.96,590.29,0.29003749]
[1743913418272,0.554,590.96,590.29,1.26423726]
[1743913418473,0.554,590.96,590.3,0.29003749]
[1743913420674,0.554,590.96,590.29,1.26423726]
[1743913420867,0.554,590.96,590.3,0.29003707]
[1743913422274,0.554,590.96,590.29,1.26423726]
[1743913422473,0.554,590.96,590.3,0.29003677]
[1743913424074,0.554,590.96,590.3,1.55427403]
[1743913424269,0.554,590.96,590.31,0.29003677]
[1743913425674,0.554,590.96,590.31,1.55427403]
[1743913425876,0.554,590.96,590.32,0.29003621]
[1743913426075,0.694,590.97,590.32,0.29003621]
[1743913427372,0.694,590.97,590.31,1.26423726]
[1743913427672,0.694,590.97,590.32,0.2900375]
[1743913428577,0.695,590.96,590.32,0.2900375]
[1743913429179,0.695,590.96,590.31,1.26423726]
[1743913429379,0.695,590.96,590.32,0.2900376]
[1743913430283,0.695,590.96,590.33,0.2900376]
[1743913430481,0.695,590.96,590.26,0.2900376]
[1743913430782,0.695,590.96,590.25,1.26423726]
[1743913430981,0.695,590.96,590.26,0.29003698]
[1743913432482,0.695,590.96,590.26,1.55427424]
[1743913432779,0.695,590.96,590.27,0.29003698]
[1743913436585,0.695,590.96,590.24,0.29003698]
[1743913436783,0.695,590.96,590.25,0.29003698]
[1743913436983,0.695,590.96,590.24,0.29003698]
[1743913437184,0.695,590.96,590.25,0.29003698]
[1743913437385,0.695,590.96,590.24,0.29003698]
[1743913438086,0.695,590.96,590.29,1.26423726]
[1743913438381,0.695,590.96,590.3,0.29003698]
[1743913439379,0.695,590.96,590.31,0.29002941]
[1743913439583,0.695,590.96,590.3,0.29002941]
[1743913439784,0.694,590.97,590.31,0.29002941]
[1743913439981,0.694,590.97,590.3,0.29002941]
[1743913442088,0.694,590.97,590.29,1.26423726]
[1743913442289,0.694,590.97,590.3,0.29003695]
[1743913443084,0.59,590.96,590.29,0.29003695]
[1743913443289,0.59,590.96,590.3,0.29003695]
[1743913443490,0.59,590.96,590.31,0.29003695]
[1743913443690,0.59,590.96,590.29,0.29003695]
[1743913443889,0.59,590.96,590.3,0.29003695]
[1743913444089,0.59,590.96,590.31,0.29003695]
[1743913444284,0.59,590.96,590.29,0.29003695]
[1743913444488,0.59,590.96,590.3,0.29003695]
[1743913444789,0.59,590.96,590.31,0.29003695]
[1743913445088,0.59,590.96,590.32,0.29003695]
[1743913445290,0.59,590.96,590.29,0.29003695]
[1743913445586,0.59,590.96,590.3,0.29003695]
[1743913445889,0.59,590.96,590.31,0.29003695]
[1743913446086,0.59,590.96,590.32,0.29003695]
[1743913446289,0.59,590.96,590.24,1.26423726]
[1743913446489,0.59,590.96,590.25,0.29003226]
[1743913447690,0.59,590.96,590.31,1.26423726]
[1743913447891,0.59,590.96,590.32,0.29003226]
[1743913449486,0.59,590.96,590.33,0.29003226]
[1743913449690,0.59,590.96,590.21,0.29003226]
[1743913449891,0.59,590.96,590.22,0.29003226]
[1743913450087,0.59,590.96,590.21,0.29003226]
[1743913452994,0.59,590.96,590.21,1.55426952]
[1743913453294,0.59,590.96,590.22,0.29003226]
[1743913455299,0.655,590.95,590.22,0.29003226]
[1743913455699,0.655,590.95,590.22,1.55426952]
[1743913455899,0.655,590.95,590.23,0.29003226]
[1743913457399,0.655,590.95,590.23,1.55426952]
[1743913457598,0.655,590.95,590.24,0.29003226]
[1743913458902,0.655,590.95,590.33,1.26423726]
[1743913459095,0.655,590.95,590.34,0.29003226]
[1743913460500,0.655,590.95,590.33,1.26423726]
[1743913460702,0.655,590.95,590.34,0.29002925]
[1743913461203,0.655,590.95,590.16,0.29002925]
[1743913461397,0.655,590.95,590.17,0.29002925]
[1743913461601,0.655,590.95,590.18,0.29002925]
[1743913461798,0.655,590.95,590.16,0.29002925]
[1743913462101,0.655,590.95,590.15,1.26423726]
[1743913462397,0.655,590.95,590.16,0.29002517]
[1743913463399,0.655,590.95,590.18,1.26423726]
[1743913463597,0.655,590.95,590.19,0.29002517]
[1743913467107,0.655,590.95,590.18,1.26423726]
[1743913467308,0.655,590.95,590.19,0.29002034]
[1743913467808,0.655,590.95,590.36,1.26423726]
[1743913468008,0.655,590.95,590.37,0.2900253]
[1743913470605,0.655,590.95,590.38,0.2900253]
[1743913470805,0.655,590.95,590.3,0.2900253]
[1743913471005,0.655,590.95,590.31,0.2900253]
[1743913471210,0.655,590.95,590.32,0.2900253]
[1743913471410,1.403,590.95,590.3,0.2900253]
[1743913471610,1.403,590.95,590.31,0.2900253]
[1743913471909,1.403,590.95,590.32,0.2900253]
[1743913472111,1.403,590.95,590.3,0.2900253]
[1743913472306,1.403,590.95,590.31,0.2900253]
[1743913472607,1.403,590.95,590.3,0.2900253]
[1743913472806,1.403,590.95,590.32,0.2900253]
[1743913473110,1.403,590.95,590.33,0.2900253]
[1743913473411,1.403,590.95,590.34,0.2900253]
[1743913473610,1.403,590.95,590.29,0.2900253]
[1743913474906,1.403,590.95,590.15,0.2900253]
[1743913475108,1.403,590.95,590.16,0.2900253]
[1743913475409,1.403,590.95,590.17,0.2900253]
[1743913475611,1.403,590.95,590.18,0.2900253]
[1743913475811,1.403,590.95,590.15,0.2900253]
[1743913476109,1.403,590.95,590.16,0.2900253]
[1743913476306,1.403,590.95,590.15,0.2900253]
[1743913477207,1.403,590.95,590.17,1.26423726]
[1743913477410,1.403,590.95,590.18,0.2900253]
[1743913479513,1.403,590.95,590.19,0.33887392]
[1743913479808,1.403,590.95,590.2,0.2900253]
[1743913482417,1.403,590.95,590.31,1.26423726]
[1743913482617,1.403,590.95,590.32,0.2900253]
[1743913483713,1.403,590.95,590.31,1.26423726]
[1743913483916,1.403,590.95,590.32,0.289848]
[1743913484914,1.403,590.95,590.31,0.289848]
[1743913485216,1.403,590.95,590.3,1.26423726]
[1743913485418,1.403,590.95,590.31,0.28984792]
[1743913486921,1.403,590.95,590.32,0.28984549]
[1743913487122,1.403,590.95,590.31,0.28984549]
[1743913487422,1.403,590.95,590.32,0.28984549]
[1743913487622,1.403,590.95,590.31,0.28984549]
[1743913487818,1.403,590.95,590.32,0.28984549]
[1743913488124,1.403,590.95,590.34,1.26423726]
[1743913488317,1.403,590.95,590.35,0.28984549]
[1743913492027,1.403,590.95,590.31,0.28984549]
[1743913492221,1.403,590.95,590.36,0.28984549]
[1743913492423,1.403,590.95,590.37,0.28984549]
[1743913492621,1.403,590.95,590.31,0.28984549]
[1743913494228,1.403,590.95,590.33,1.26423726]
[1743913494427,1.403,590.95,590.34,0.28984549]
[1743913496832,1.403,590.95,590.35,0.2898409]